bitfinex/quotes_SOLUSD_20250928
["timestamp","ask_amount","ask_price","bid_price","bid_amount"]
[1759059570779,133.6,199.94,199.89,0.77]
[1759059570964,0.67,199.95,199.89,0.77]
[1759059570965,38.7,199.95,199.89,0.77]
[1759059571154,26.0,199.95,199.89,0.77]
[1759059571357,37.1,199.96,199.89,0.77]
[1759059571577,3.31030236,200.03,199.9,13.59559401]
[1759059571781,0.67,199.98,199.91,0.67]
[1759059571982,26.0,199.94,199.91,0.67]
[1759059572359,0.67,199.98,199.92,0.67]
[1759059572567,26.0,199.95,199.92,0.67]
[1759059573275,26.0,199.95,199.93,0.67]
[1759059573590,26.67,199.95,199.9,0.67]
[1759059573763,26.0,199.95,199.91,0.67]
[1759059573969,26.0,199.94,199.91,0.67]
[1759059574473,0.67,199.97,199.91,0.67]
[1759059574787,26.0,199.94,199.91,0.67]
[1759059575480,0.67,199.96,199.89,0.1]
[1759059575683,0.67,199.95,199.9,0.67]
[1759059577478,0.67,199.95,199.89,0.1]
[1759059577780,0.67,199.95,199.9,0.67]
[1759059579188,133.6,199.94,199.9,0.67]
[1759059580596,133.6,199.94,199.89,0.1]
[1759059580792,133.6,199.94,199.91,0.67]
[1759059581999,133.6,199.94,199.92,0.67]
[1759059582578,133.6,199.94,199.89,0.1]
[1759059582907,133.6,199.94,199.9,0.67]
[1759059586307,133.6,199.94,199.91,13.59559401]
[1759059586512,133.6,199.94,199.92,0.67]
[1759059589107,133.6,199.94,199.89,0.1]
[1759059589288,133.6,199.94,199.91,13.59559401]
[1759059589493,133.6,199.94,199.92,0.67]
[1759059589703,133.6,199.94,199.93,0.67]
[1759059590408,133.6,199.94,199.9,13.69559401]
[1759059590612,133.6,199.94,199.9,0.65]
[1759059590988,133.6,199.94,199.91,0.65]
[1759059592583,133.6,199.94,199.92,0.65]
[1759059592981,0.67,199.97,199.92,0.65]
[1759059593186,0.67,199.96,199.9,0.65]
[1759059593888,0.67,199.96,199.89,0.1]
[1759059594095,38.68,199.95,199.89,0.1]
[1759059594292,0.67,199.94,199.89,0.1]
[1759059594713,39.35,199.94,199.89,0.1]
[1759059595419,0.67,199.94,199.89,0.1]
[1759059595603,39.35,199.94,199.89,0.1]
[1759059598808,0.67,199.94,199.89,0.1]
[1759059599092,39.35,199.94,199.89,0.1]
[1759059599509,0.67,199.94,199.89,0.1]
[1759059599715,39.35,199.94,199.89,0.1]
[1759059600031,39.35,199.94,199.89,0.75]
[1759059600337,0.67,199.94,199.9,0.65]
[1759059600500,0.67,199.94,199.89,0.1]
[1759059600693,0.67,199.94,199.89,0.75]
[1759059600893,0.67,199.94,199.89,0.1]
[1759059601095,0.67,199.94,199.9,0.65]
[1759059601306,0.67,199.94,199.89,0.1]
[1759059601514,0.67,199.93,199.89,0.75]
[1759059601728,26.0,199.95,199.89,0.75]
[1759059601915,26.67,199.95,199.89,0.75]
[1759059602503,26.0,199.95,199.89,0.75]
[1759059602894,26.67,199.95,199.89,0.75]
[1759059603096,133.6,199.94,199.89,0.75]
[1759059604227,133.6,199.94,199.9,13.59559401]
[1759059604424,0.67,199.99,199.89,0.1]
[1759059604625,39.35,199.99,199.91,0.65]
[1759059604920,0.67,199.99,199.92,13.59559401]
[1759059605121,0.67,200.01,199.93,0.65]
[1759059605295,0.67,200.01,199.94,13.59559401]
[1759059605502,24.44,200.03,199.96,13.59559401]
[1759059605706,0.67,200.03,199.97,0.65]
[1759059606814,0.67,200.03,199.95,13.59559401]
[1759059607129,0.67,200.02,199.95,13.59559401]
[1759059607321,0.67,200.01,199.95,13.59559401]
[1759059607626,0.67,200.01,199.95,14.24559401]
[1759059607813,26.67,200.01,199.95,14.24559401]
[1759059608531,0.67,200.01,199.95,14.24559401]
[1759059609330,0.67,200.01,199.96,0.65]
[1759059609698,0.67,200.01,199.97,0.65]
[1759059609905,65.35,200.03,199.97,0.65]
[1759059610223,26.67,200.03,199.97,0.65]
[1759059611425,26.0,200.0,199.93,13.59559401]
[1759059611627,26.0,200.0,199.92,0.67]
[1759059611628,0.67,199.99,199.92,0.67]
[1759059614129,26.67,199.99,199.92,0.67]
[1759059614424,65.35,199.99,199.92,0.67]
[1759059614625,26.67,199.99,199.92,0.67]
[1759059614823,133.6,199.98,199.92,0.67]
[1759059615129,133.6,199.97,199.92,0.67]
[1759059615510,134.27,199.97,199.92,0.67]
[1759059616103,134.27,199.96,199.89,0.77]
[1759059616303,172.95,199.96,199.89,0.1]
[1759059616537,133.6,199.95,199.89,0.1]
[1759059617042,134.27,199.95,199.89,0.1]
[1759059617530,134.27,199.95,199.89,0.77]
[1759059619807,26.0,199.92,199.89,0.1]
[1759059620126,38.68,199.91,199.89,0.1]
[1759059620326,0.67,199.91,199.89,0.1]
[1759059620526,39.39,199.9,199.89,0.1]
[1759059621347,0.67,199.9,199.89,0.1]
[1759059621814,39.39,199.9,199.89,0.1]
[1759059623427,0.67,199.9,199.89,0.1]
[1759059623745,39.37,199.9,199.89,0.1]
[1759059623948,0.67,199.9,199.89,0.1]
[1759059624238,39.37,199.9,199.89,0.1]
[1759059624619,0.67,199.9,199.89,0.1]
[1759059624937,39.37,199.9,199.89,0.1]
[1759059626328,65.37,199.9,199.89,0.1]
[1759059626826,26.67,199.9,199.89,0.1]
[1759059627040,65.39,199.9,199.89,0.1]
[1759059627214,26.67,199.9,199.89,0.1]
[1759059627416,65.39,199.9,199.89,0.1]
[1759059628438,26.67,199.9,199.89,0.1]
[1759059629232,65.39,199.9,199.89,0.1]
[1759059630112,26.67,199.9,199.89,0.1]
[1759059630313,39.39,199.9,199.89,0.1]
[1759059630722,0.67,199.9,199.89,0.1]
[1759059630936,39.39,199.9,199.89,0.1]
[1759059631742,0.67,199.9,199.89,0.1]
[1759059631931,39.37,199.9,199.89,0.1]
[1759059632236,0.67,199.9,199.89,0.1]
[1759059633030,38.7,199.9,199.89,0.1]
[1759059633341,26.67,199.92,199.89,0.1]
[1759059633641,38.72,199.91,199.89,0.1]
[1759059634142,26.67,199.94,199.89,0.82]
[1759059634345,26.0,199.9,199.89,0.82]
[1759059634536,26.0,199.9,199.89,0.1]
[1759059635638,0.67,199.95,199.89,0.82]
[1759059635940,27.16,199.94,199.89,0.82]
[1759059636113,27.16,199.94,199.9,0.72]
[1759059636315,27.16,199.94,199.89,0.1]
[1759059636316,0.67,199.95,199.91,0.72]
[1759059636517,3.98517431,199.99,199.91,0.72]
[1759059636740,0.67,200.01,199.91,0.72]
[1759059636939,22.62,200.0,199.91,0.72]
[1759059637442,26.0,199.97,199.91,0.72]
[1759059638526,37.14,200.0,199.91,0.72]
[1759059639535,26.0,199.97,199.91,0.72]
[1759059639938,0.67,199.99,199.91,0.72]
[1759059641239,64.72,200.0,199.91,0.72]
[1759059641443,26.0,200.0,199.91,0.72]
[1759059641847,133.6,199.99,199.91,0.72]
[1759059644133,133.6,199.98,199.91,0.72]
[1759059644337,133.6,199.97,199.91,0.72]
[1759059652046,133.6,199.97,199.92,13.59559401]
[1759059652247,133.6,199.97,199.93,0.72]
[1759059652445,133.6,199.97,199.94,0.72]
[1759059653035,133.6,199.97,199.91,28.6433707]
[1759059653252,133.6,199.97,199.92,0.72]
[1759059655056,133.6,200.06,199.92,0.72]
[1759059655258,172.95,200.05,199.93,13.59559401]
[1759059655551,26.0,200.01,199.95,13.59559401]
[1759059655761,26.0,200.01,199.96,0.72]
[1759059655945,26.67,200.01,199.96,0.72]
[1759059658354,0.67,200.0,199.95,13.59559401]
[1759059658555,0.67,200.0,199.95,0.72]
[1759059658878,0.67,200.0,199.96,0.72]
[1759059659354,26.67,200.01,199.96,0.72]
[1759059659536,160.27,200.01,199.96,0.72]
[1759059660059,0.67,200.0,199.96,0.72]
[1759059660356,159.6,200.01,199.96,0.72]
[1759059660554,0.67,200.0,199.96,0.72]
[1759059661252,0.67,199.99,199.94,28.64110668]
[1759059661457,0.67,199.98,199.94,13.59559401]
[1759059661754,0.67,199.97,199.93,13.59559401]
[1759059661955,198.28,200.01,199.93,13.59559401]
[1759059662147,0.67,199.96,199.92,13.59559401]
[1759059662351,0.67,199.98,199.92,13.59559401]
[1759059662541,0.67,199.98,199.92,14.31559401]
[1759059663556,0.67,199.97,199.92,14.31559401]
[1759059663748,0.67,199.96,199.92,13.59559401]
[1759059664065,0.67,199.95,199.92,13.59559401]
[1759059664758,172.28,200.0,199.92,13.59559401]
[1759059664966,0.67,199.97,199.92,14.31559401]
[1759059665767,0.67,199.96,199.92,14.31559401]
[1759059667060,172.28,199.99,199.92,14.31559401]
[1759059667264,0.67,199.98,199.92,14.31559401]
[1759059667843,133.6,199.99,199.93,0.72]
[1759059669365,133.6,199.99,199.93,14.31559401]
[1759059669547,133.6,199.99,199.94,0.72]
[1759059670170,133.6,199.99,199.95,0.72]
[1759059670577,133.6,199.99,199.92,28.64261595]
[1759059670578,133.6,199.99,199.96,0.7]
[1759059672573,133.6,199.99,199.93,15.04702194]
[1759059672778,133.6,199.99,199.94,14.29559401]
[1759059673100,133.6,199.99,199.95,0.7]
[1759059673282,133.6,199.99,199.94,13.59559401]
[1759059673473,133.6,199.99,199.95,0.7]
[1759059673674,133.6,199.99,199.96,0.7]
[1759059675885,133.6,199.99,199.97,0.7]
[1759059676402,133.6,199.99,199.95,0.7]
[1759059676576,133.6,199.99,199.96,0.7]
[1759059676771,133.6,199.99,199.97,0.7]
[1759059677276,133.6,199.99,199.93,28.64261595]
[1759059677588,133.6,199.99,199.97,0.7]
[1759059678609,133.6,199.99,199.93,28.64261595]
[1759059678777,133.6,199.99,199.95,0.7]
[1759059679193,133.6,199.99,199.96,0.7]
[1759059680197,133.6,199.99,199.93,28.64261595]
[1759059680494,133.6,199.99,199.94,0.7]
[1759059681695,133.6,199.99,199.93,28.64261595]
[1759059681991,0.67,199.98,199.93,13.59559401]
[1759059682380,133.6,199.99,199.94,0.67]
[1759059682881,134.27,199.99,199.94,0.67]
[1759059683191,134.27,199.99,199.95,0.67]
[1759059685194,133.6,199.99,199.95,0.67]
[1759059685695,134.27,199.99,199.95,0.67]
[1759059686901,133.6,199.99,199.95,0.67]
[1759059687069,133.6,199.99,199.93,13.59559401]
[1759059687274,133.6,199.99,199.95,0.67]
[1759059687872,133.6,199.99,199.96,0.67]
[1759059688070,133.6,199.99,199.93,13.59559401]
[1759059688274,133.6,199.99,199.95,13.59559401]
[1759059688476,133.6,199.99,199.96,0.67]
[1759059689909,0.67,200.01,199.96,0.67]
[1759059690102,26.0,200.0,199.96,0.67]
[1759059690403,26.67,200.0,199.96,0.67]
[1759059696702,26.0,200.0,199.98,13.59559401]
[1759059698311,133.6,200.02,199.94,52.25559401]
[1759059698312,133.6,200.02,199.99,0.67]
[1759059698613,133.6,200.02,200.0,13.59559401]
[1759059698789,133.6,200.02,200.0,14.26559401]
[1759059699793,26.0,200.04,200.02,13.59559401]
[1759059699993,133.6,200.06,200.02,0.67]
[1759059700587,134.27,200.06,200.02,0.67]
[1759059701897,133.6,200.06,200.03,0.67]
[1759059704890,133.6,200.06,200.0,28.63582663]
[1759059705205,133.6,200.06,200.02,13.59559401]
[1759059705405,133.6,200.06,200.02,14.26559401]
[1759059706110,134.27,200.06,200.02,14.26559401]
[1759059710414,134.27,200.06,200.03,15.04023263]
[1759059710613,133.6,200.06,200.03,15.70023263]
[1759059710993,133.6,200.06,200.03,0.66]
[1759059711318,133.6,200.06,200.04,15.04023262]
[1759059711812,133.6,200.06,200.03,0.66]
[1759059712004,133.6,200.06,200.03,15.70023262]
[1759059712309,133.6,200.06,200.03,0.66]
[1759059712714,133.6,200.06,200.04,15.04023262]
[1759059714415,133.6,200.06,200.03,0.66]
[1759059714799,133.6,200.06,200.04,15.04023262]
[1759059715113,133.6,200.06,200.04,0.66]
[1759059715319,133.6,200.06,200.04,15.70023262]
[1759059715515,133.6,200.12,200.05,14.25559401]
[1759059715702,28.31137604,200.25,200.05,14.25559401]
[1759059715703,0.67,200.1,200.05,14.25559401]
[1759059716224,0.67,200.1,200.06,15.69872472]
[1759059716429,26.0,200.08,200.06,15.69872472]
[1759059717921,26.0,200.08,200.06,15.03872472]
[1759059718117,26.0,200.08,200.06,15.69872472]
[1759059719129,0.67,200.07,200.03,13.59559401]
[1759059719296,0.67,200.06,200.04,15.03947863]
[1759059720104,0.67,200.06,200.02,0.66]
[1759059720505,0.67,200.06,200.03,15.03947863]
[1759059721933,26.0,200.07,200.03,15.03947863]
[1759059722120,0.67,200.05,200.0,13.59559401]
[1759059722425,0.67,200.04,200.0,28.63808906]
[1759059722626,0.67,200.03,200.0,15.04249505]
[1759059722804,26.0,200.01,199.96,13.59559401]
[1759059723004,0.67,200.0,199.96,28.64110668]
[1759059723207,0.67,200.0,199.96,29.30110668]
[1759059723897,26.0,200.01,199.96,28.64110668]
[1759059724098,0.67,200.0,199.96,28.64110668]
[1759059724311,0.67,199.99,199.96,28.64110668]
[1759059726126,26.67,200.01,199.96,28.64110668]
[1759059726311,0.67,200.0,199.94,13.59559401]
[1759059726624,26.0,199.97,199.93,15.70777669]
[1759059726833,26.0,199.97,199.94,14.25559401]
[1759059727032,26.0,199.99,199.95,0.66]
[1759059727214,26.0,199.99,199.96,13.59559401]
[1759059727418,26.0,199.99,199.97,0.66]
[1759059729934,26.0,199.99,199.96,28.64110669]
[1759059730229,0.67,199.98,199.94,13.59559401]
[1759059730437,0.67,199.98,199.94,14.25559401]
[1759059730608,26.0,199.99,199.94,14.25559401]
[1759059730809,26.67,199.99,199.92,13.59559401]
[1759059731029,26.67,199.99,199.95,15.04626727]
[1759059731338,26.67,199.99,199.95,15.70626727]
[1759059731513,26.67,199.99,199.95,15.04626727]
[1759059731714,26.67,199.99,199.94,13.59559401]
[1759059732036,26.0,199.99,199.94,14.25559401]
[1759059732220,0.67,199.98,199.94,14.25559401]
[1759059732535,0.67,199.98,199.94,29.30186128]
[1759059733128,26.0,199.99,199.94,29.30186128]
[1759059733334,26.67,199.99,199.94,29.30186128]
[1759059733833,26.67,199.99,199.94,28.64186128]
[1759059734136,26.0,199.99,199.95,0.66]
[1759059734309,26.0,199.99,199.96,0.66]
[1759059735120,26.0,199.99,199.95,15.04626727]
[1759059735330,26.67,199.99,199.95,0.66]
[1759059738912,26.0,199.99,199.95,0.66]
[1759059739209,26.0,199.99,199.96,0.66]
[1759059739411,26.0,199.99,199.97,0.66]
[1759059740241,26.0,199.99,199.95,0.66]
[1759059740638,26.0,199.99,199.96,0.66]
[1759059740932,26.67,199.99,199.95,15.04626727]
[1759059741252,26.67,199.99,199.95,0.66]
[1759059742441,26.67,199.99,199.95,15.70626727]
[1759059743331,26.67,199.99,199.95,0.66]
[1759059743640,26.67,199.99,199.95,15.04626727]
[1759059743836,0.67,199.98,199.92,14.25559401]
[1759059744142,0.67,199.98,199.94,15.04626727]
[1759059744529,0.67,199.97,199.94,15.04626727]
[1759059745943,26.0,199.99,199.89,0.1]
[1759059745944,160.27,199.96,199.89,0.1]
[1759059746148,26.0,199.92,199.89,15.14626727]
[1759059746363,26.67,199.92,199.89,0.1]
[1759059747533,26.0,199.92,199.89,0.76]
[1759059747848,26.0,199.92,199.9,0.66]
[1759059748019,38.62,199.98,199.91,13.59559401]
[1759059748222,15.04928642,200.0,199.93,13.59559401]
[1759059748421,26.0,199.99,199.94,0.66]
[1759059748969,26.0,199.99,199.93,28.6433707]
[1759059748970,0.67,199.99,199.95,0.66]
[1759059749240,26.67,199.99,199.95,0.66]
[1759059750033,26.67,199.99,199.93,28.6433707]
[1759059750218,26.67,199.99,199.93,29.3033707]
[1759059750419,26.67,199.99,199.94,0.66]
[1759059750620,0.67,199.98,199.94,0.66]
[1759059752442,26.67,199.99,199.95,0.66]
[1759059752644,26.67,199.99,199.96,0.66]
[1759059752645,26.0,199.99,199.96,0.66]
[1759059753956,26.67,199.99,199.95,13.59559401]
[1759059754147,26.67,199.99,199.95,14.25559401]
[1759059754343,0.67,199.98,199.94,15.04626727]
[1759059754539,0.67,199.97,199.92,13.59559401]
[1759059754741,0.67,199.96,199.93,15.04777669]
[1759059756625,160.27,199.98,199.93,15.04777669]
[1759059756944,160.27,199.98,199.94,0.66]
[1759059757148,160.27,199.98,199.93,15.04777669]
[1759059757149,159.6,199.98,199.95,0.66]
[1759059757447,160.27,199.98,199.93,15.70777669]
[1759059758038,160.27,199.98,199.94,0.66]
[1759059762858,160.27,199.98,199.93,15.04777669]
[1759059763032,160.27,199.98,199.93,15.70777669]
[1759059763433,159.6,199.98,199.93,15.70777669]
[1759059763645,160.27,199.98,199.93,0.66]
[1759059763848,160.27,199.98,199.94,0.66]
[1759059764163,0.67,199.97,199.92,29.30412552]
[1759059764461,0.67,199.96,199.92,29.30412552]
[1759059764761,160.27,199.98,199.93,0.66]
[1759059765333,0.67,199.97,199.93,0.66]
[1759059765552,159.6,199.98,199.93,0.66]
[1759059765756,160.27,199.98,199.93,0.66]
[1759059766353,133.6,199.97,199.93,0.66]
[1759059767562,133.77,199.97,199.93,0.66]
[1759059768030,0.67,199.96,199.92,28.64412552]
[1759059768238,133.77,199.95,199.89,13.69559401]
[1759059768435,0.67,199.94,199.89,14.35559401]
[1759059768634,0.67,199.94,199.89,29.40639045]
[1759059769155,0.67,199.93,199.89,28.74639045]
[1759059769361,159.1,199.95,199.89,28.74639045]
[1759059769534,0.67,199.94,199.89,28.74639045]
[1759059769741,0.67,199.93,199.89,28.74639045]
[1759059770053,0.67,199.92,199.89,28.74639045]
[1759059770354,0.67,199.94,199.9,0.69]
[1759059770539,159.1,199.95,199.91,0.69]
[1759059771340,159.76,199.95,199.91,0.69]
[1759059772473,133.1,199.94,199.91,0.69]
[1759059773164,133.1,199.94,199.92,0.69]
[1759059773556,0.66,199.99,199.93,13.59559401]
[1759059773859,133.1,199.98,199.94,0.69]
[1759059774057,159.1,199.98,199.94,0.69]
[1759059774257,159.76,199.98,199.94,0.69]
[1759059775841,0.66,199.97,199.93,13.59559401]
[1759059776061,0.66,199.96,199.93,13.59559401]
[1759059776247,159.76,199.98,199.93,13.59559401]
[1759059776459,0.66,199.97,199.93,0.69]
[1759059776656,159.1,199.98,199.9,13.59559401]
[1759059776856,159.1,199.98,199.92,13.59559401]
[1759059777061,159.76,199.98,199.93,0.69]
[1759059779010,159.76,199.98,199.92,13.59559401]
[1759059779156,159.76,199.98,199.94,0.69]
[1759059782283,159.1,199.98,199.94,0.69]
[1759059782570,159.1,199.98,199.95,13.59559401]
[1759059782784,0.66,200.04,199.97,13.59559401]
[1759059782953,0.66,200.04,199.98,0.69]
[1759059783154,26.0,200.02,199.98,0.69]
[1759059783368,0.66,200.03,199.98,0.69]
[1759059783557,0.66,200.03,199.95,13.59559401]
[1759059783753,0.66,200.03,199.98,0.69]
[1759059784480,26.66,200.03,199.98,0.69]
[1759059785365,26.66,200.03,199.99,0.69]
[1759059787057,26.0,200.04,200.0,0.69]
[1759059787257,0.66,200.06,200.0,0.69]
[1759059787474,26.0,200.04,200.0,0.69]
[1759059787787,26.0,200.04,200.01,13.59559401]
[1759059787959,26.0,200.04,200.02,0.69]
[1759059788972,26.0,200.04,200.03,0.69]
[1759059791277,26.0,200.04,200.03,0.7]
[1759059796382,26.0,200.04,199.99,15.04098669]
[1759059796576,26.0,200.04,200.02,0.7]
[1759059797802,26.0,200.04,199.99,15.04098669]
[1759059797983,0.67,200.03,199.98,0.7]
[1759059798183,26.0,200.04,199.95,13.59559401]
[1759059798379,0.67,200.03,199.99,13.59559401]
[1759059798583,0.67,200.03,199.99,14.29559401]
[1759059799980,26.0,200.04,199.98,13.59559401]
[1759059800183,26.0,200.04,199.99,0.7]
[1759059800384,26.0,200.04,200.0,0.68]
[1759059800811,26.0,200.04,199.98,14.27559401]
[1759059801010,0.67,200.03,199.98,14.27559401]
[1759059801309,26.67,200.04,199.99,0.68]
[1759059801484,26.67,200.04,200.0,0.68]
[1759059808600,26.0,200.04,200.01,0.68]
[1759059808802,26.0,200.04,199.95,38.58]
[1759059808803,26.0,200.04,200.02,0.68]
[1759059809304,0.67,200.1,200.03,13.59559401]
[1759059809604,26.0,200.09,200.04,0.68]
[1759059810009,0.67,200.12,200.05,13.59559401]
[1759059810194,26.0,200.1,200.03,15.71797088]
[1759059810386,0.67,200.09,200.04,13.59559401]
[1759059810584,0.67,200.08,200.04,13.59559401]
[1759059811503,0.67,200.07,200.04,13.59559401]
[1759059811688,26.67,200.09,200.04,13.59559401]
[1759059811889,0.67,200.08,200.04,13.59559401]
[1759059812817,0.67,200.08,200.04,14.27559401]
[1759059813111,0.67,200.08,200.03,13.59559401]
[1759059813299,0.67,200.08,200.02,0.68]
[1759059813692,26.67,200.08,200.02,0.68]
[1759059814695,26.0,200.08,200.03,13.59559401]
[1759059815012,26.0,200.09,200.04,0.68]
[1759059815211,26.0,200.09,200.05,0.68]
[1759059815212,26.67,200.09,200.05,0.68]
[1759059816533,26.0,200.09,200.05,0.68]
[1759059816720,26.67,200.09,200.05,0.68]
[1759059817014,26.0,200.09,200.06,0.68]
[1759059818408,26.0,200.09,200.03,13.59559401]
[1759059818714,133.77,200.13,200.07,0.68]
[1759059818922,26.0,200.1,200.07,0.68]
[1759059819307,26.0,200.1,200.08,0.68]
[1759059819508,26.0,200.1,200.03,28.63356489]
[1759059819704,26.0,200.1,200.06,0.68]
[1759059820018,26.0,200.1,200.07,0.68]
[1759059820926,26.0,200.1,200.05,13.59559401]
[1759059820927,0.67,200.09,200.05,13.59559401]
[1759059821127,0.67,200.08,200.03,15.03797088]
[1759059821323,0.67,200.07,200.04,13.59559401]
[1759059821515,0.67,200.07,200.03,13.59559401]
[1759059822214,26.0,200.08,200.03,13.59559401]
[1759059822419,0.67,200.07,200.03,13.59559401]
[1759059823223,0.67,200.07,200.03,14.27559401]
[1759059823826,26.0,200.08,200.03,14.27559401]
[1759059824001,26.67,200.08,200.04,0.68]
[1759059824734,26.0,200.08,200.04,0.68]
[1759059824918,26.0,200.08,200.02,13.59559401]
[1759059825119,26.0,200.08,200.05,0.68]
[1759059826131,26.67,200.08,200.03,0.68]
[1759059826428,26.67,200.07,200.01,0.68]
[1759059826628,26.67,200.07,200.02,13.59559401]
[1759059826831,0.67,200.06,200.02,13.59559401]
[1759059827331,0.67,200.06,200.01,13.59559401]
[1759059827520,0.67,200.06,200.02,0.68]
[1759059828110,26.0,200.07,200.02,0.68]
[1759059828313,26.0,200.07,200.03,0.68]
[1759059829334,26.0,200.07,200.04,0.68]
[1759059831639,26.0,200.07,200.01,14.26559401]
[1759059831825,26.0,200.07,200.02,0.67]
[1759059832016,26.0,200.07,200.01,13.59559401]
[1759059832338,26.0,200.07,200.03,0.67]
[1759059833030,0.67,200.06,200.01,13.59559401]
[1759059833232,0.67,200.06,200.02,0.67]
[1759059833539,26.67,200.07,199.99,28.63582663]
[1759059833734,26.0,200.07,200.03,0.67]
[1759059834135,26.67,200.07,200.03,0.67]
[1759059834939,133.1,200.06,200.03,0.67]
[1759059839833,133.1,200.06,200.04,0.67]
[1759059840537,133.1,200.06,200.0,13.59559401]
[1759059840742,133.1,200.06,200.02,13.59559401]
[1759059841042,133.1,200.06,200.03,0.67]
[1759059843644,133.1,200.06,200.02,13.59559401]
[1759059843944,133.1,200.06,200.04,0.67]
[1759059845243,133.1,200.06,200.03,0.67]
[1759059847530,133.1,200.06,200.02,13.59559401]
[1759059847738,133.1,200.06,200.03,0.67]
[1759059849324,133.1,200.06,200.02,13.59559401]
[1759059849523,133.1,200.06,200.03,0.67]
[1759059849847,133.1,200.06,200.02,13.59559401]
[1759059850043,133.1,200.06,200.04,0.67]
[1759059850240,133.1,200.06,200.03,0.67]
[1759059850627,133.1,200.06,200.04,0.67]
[1759059850940,133.1,200.06,200.02,14.26559401]
[1759059851247,133.1,200.06,200.03,0.67]
[1759059851444,133.1,200.06,200.02,13.59559401]
[1759059851619,133.1,200.06,200.04,0.67]
[1759059852346,133.77,200.06,200.02,13.59559401]
[1759059852531,0.67,200.05,200.0,0.67]
[1759059852737,0.67,200.04,200.01,13.59559401]
[1759059852943,0.67,200.03,200.01,13.59559401]
[1759059853139,0.67,200.04,200.01,13.59559401]
[1759059853537,0.67,200.04,200.0,13.59559401]
[1759059853736,0.67,200.04,200.0,14.26559401]
[1759059854143,133.1,200.06,200.0,52.80559401]
[1759059854358,0.67,200.05,200.0,14.26559401]
[1759059854538,0.67,200.05,200.0,52.13559401]
[1759059854741,0.67,200.05,200.01,0.67]
[1759059855841,133.1,200.06,200.02,0.67]
[1759059856540,133.1,200.06,200.04,13.59559401]
[1759059856844,133.1,200.06,200.04,14.26559401]
[1759059857156,133.1,200.06,200.05,0.67]
[1759059858453,133.1,200.06,200.03,52.80559401]
[1759059858754,133.1,200.06,200.04,0.67]
[1759059859428,26.0,200.07,200.04,0.67]